[Event "Chessable op"]
[Site "Formentera ESP"]
[Date "2022.05.08"]
[Round "9.10"]
[White "Papadiamandis, Elliot"]
[Black "Chiku-Ratte, Olivier-Kenta"]
[Result "1/2-1/2"]
[ECO "B29"]
[WhiteElo "2373"]
[BlackElo "2358"]
[PlyCount "91"]
[EventDate "2022.04.29"]
[EventType "swiss"]
[EventRounds "10"]
[EventCountry "ESP"]
[Source "ChessMix"]
[SourceDate "2022.05.10"]
[TimeControl "40/5400+30:1800+30"]

1. e4 {[%emt 0:00:01]} c5 {[%emt 0:02:24]} 2. Nf3 {[%emt 0:00:23]} Nf6 {
[%emt 0:01:02]} 3. e5 {[%emt 0:07:42]} Nd5 {[%emt 0:00:36]} 4. d4 {
[%emt 0:00:43]} cxd4 {[%emt 0:00:24]} 5. Qxd4 {[%emt 0:04:04]} e6 {
[%emt 0:02:09]} 6. Bc4 {[%emt 0:07:39]} Nc6 {[%emt 0:00:44]} 7. Qe4 {
[%emt 0:01:23]} d6 {[%emt 0:00:50]} 8. O-O {[%emt 0:01:53]} dxe5 {
[%emt 0:21:28]} 9. Nxe5 {[%emt 0:01:22]} Nf6 {[%emt 0:14:41]} 10. Nxc6 {
[%emt 0:08:22]} Nxe4 {[%emt 0:06:35]} 11. Nxd8 {[%emt 0:00:25]} Kxd8 {
[%emt 0:00:05]} 12. Re1 {[%emt 0:03:48]} Nd6 {[%emt 0:03:22]} 13. Bb3 {
[%emt 0:03:40]} Bd7 {[%emt 0:03:21]} 14. Nc3 {[%emt 0:01:27]} a5 {
[%emt 0:05:26]} 15. a4 {[%emt 0:03:20]} Ra6 {[%emt 0:05:04]} 16. Bf4 {
[%emt 0:02:49]} Be7 {[%emt 0:07:17]} 17. Rad1 {[%emt 0:03:19]} Kc8 {
[%emt 0:02:55]} 18. Rd3 {[%emt 0:10:20]} Rd8 {[%emt 0:05:49]} 19. Red1 {
[%emt 0:07:10]} Be8 {[%emt 0:02:05]} 20. Rh3 {[%emt 0:03:05]} h6 {
[%emt 0:01:41]} 21. Be5 {[%emt 0:00:27]} Nf5 {[%emt 0:05:56]} 22. Rxd8+ {
[%emt 0:04:05]} Bxd8 {[%emt 0:00:22]} 23. g4 {[%emt 0:01:30]} Nh4 {
[%emt 0:01:12]} 24. Bxg7 {[%emt 0:01:17]} Bc6 {[%emt 0:03:24]} 25. Bxh6 {
[%emt 0:00:37]} Nf3+ {[%emt 0:00:18]} 26. Kf1 {[%emt 0:00:23]} Bc7 {
[%emt 0:00:02]} 27. Be3 {[%emt 0:02:21]} Nxh2+ {[%emt 0:01:30]} 28. Ke2 {
[%emt 0:00:01]} Nxg4 {[%emt 0:02:30]} 29. Rh8+ {[%emt 0:01:12]} Kd7 {
[%emt 0:00:21]} 30. Bc4 {[%emt 0:01:29]} Bf3+ {[%emt 0:00:54]} 31. Ke1 {
[%emt 0:00:01]} Nxe3 {[%emt 0:00:20]} 32. Bb5+ {[%emt 0:08:16]} Ke7 {
[%emt 0:00:44]} 33. fxe3 {[%emt 0:02:19]} Rd6 {[%emt 0:00:36]} 34. Kf2 {
[%emt 0:03:24]} Bc6 {[%emt 0:00:47]} 35. Ke2 {[%emt 0:01:08]} Bd7 {
[%emt 0:00:33]} 36. Rh7 {[%emt 0:01:25]} Be8 {[%emt 0:00:24]} 37. Bxe8 {
[%emt 0:02:09]} Kxe8 {[%emt 0:00:01]} 38. Ne4 {[%emt 0:00:07]} Rb6 {
[%emt 0:01:01]} 39. b3 {[%emt 0:00:21]} Rc6 {[%emt 0:00:13]} 40. Kd3 {
[%emt 0:00:00]} Bd8 {[%emt 0:00:00]} 41. Rh8+ {[%emt 0:10:30]} Kd7 {
[%emt 0:02:52]} 42. Rh7 {[%emt 0:00:48]} Ke8 {[%emt 0:01:10]} 43. Rh8+ {
[%emt 0:02:18]} Kd7 {[%emt 0:00:06]} 44. Rh7 {[%emt 0:00:05]} Ke8 {
[%emt 0:00:07]} 45. c4 {[%emt 0:00:05]} f5 {[%emt 0:00:02]} 46. Nc3 {
[%emt 0:00:02]} 1/2-1/2

[Event "Mauricie op"]
[Site "Trois-Rivieres CAN"]
[Date "2016.03.20"]
[Round "5"]
[White "Chiku-Ratte, Olivier-Kenta"]
[Black "Hebert, Jean"]
[Result "1/2-1/2"]
[ECO "D15"]
[WhiteElo "2413"]
[BlackElo "2402"]
[PlyCount "59"]
[EventDate "2016.03.18"]
[EventType "swiss"]
[EventRounds "5"]
[EventCountry "CAN"]
[TimeControl "900+2"]

1. d4 d5 2. c4 c6 3. Nf3 Nf6 4. Nc3 a6 5. c5 Nbd7 6. Bf4 Nh5 7. Bd2 g6 8. e3
Bg7 9. Be2 Nhf6 10. O-O O-O 11. b4 Re8 12. Rb1 e5 13. Nxe5 Nxe5 14. dxe5 Rxe5
15. Bd3 Qc7 16. Ne2 Ng4 17. h3 Nf6 18. Bc3 Re7 19. Bd4 Bd7 20. Qc2 Nh5 21. Qb2
Bxd4 22. Qxd4 Ng7 23. a4 Bf5 24. Rfd1 Bxd3 25. Qxd3 Nf5 26. b5 axb5 27. axb5
Rae8 28. Nd4 Nxd4 29. Qxd4 Re4 30. Qb2 1/2-1/2

[Event "Carnaval"]
[Site "Quebec CAN"]
[Date "2016.02.20"]
[Round "3"]
[White "Chiku-Ratte, Olivier-Kenta"]
[Black "Dorrance, Adam"]
[Result "1-0"]
[ECO "D17"]
[WhiteElo "2413"]
[BlackElo "2284"]
[PlyCount "79"]
[EventDate "2016.02.19"]
[EventType "swiss"]
[EventRounds "5"]
[EventCountry "CAN"]
[TimeControl "900+2"]

1. d4 d5 2. c4 c6 3. Nf3 Nf6 4. Nc3 dxc4 5. a4 Bf5 6. Ne5 Nbd7 7. Nxc4 Qc7 8.
g3 e5 9. dxe5 Nxe5 10. Bf4 Nfd7 11. Bg2 g5 12. Ne3 gxf4 13. Nxf5 O-O-O 14. O-O
fxg3 15. hxg3 Kb8 16. a5 h5 17. Qa4 Nc5 18. Qh4 Ng6 19. Qg5 h4 20. Rad1 Re8 21.
e3 Ne6 22. Qf6 hxg3 23. fxg3 Rh7 24. Ne4 Bg7 25. Nxg7 Rxg7 26. Bh3 Qe5 27. Bxe6
Qxf6 28. Nxf6 Rxe6 29. Rd8+ Kc7 30. Rfd1 Ne5 31. Ne8+ Rxe8 32. Rxe8 Rxg3+ 33.
Kf2 Rg5 34. Re7+ Kc8 35. e4 a6 36. b3 Ng4+ 37. Kf3 Ne5+ 38. Ke3 Ng6 39. Rxf7
Kb8 40. Rg7 1-0

[Event "Carnaval"]
[Site "Quebec CAN"]
[Date "2016.02.21"]
[Round "4"]
[White "Sambuev, Bator"]
[Black "Chiku-Ratte, Olivier-Kenta"]
[Result "1-0"]
[ECO "A30"]
[WhiteElo "2582"]
[BlackElo "2413"]
[PlyCount "109"]
[EventDate "2016.02.19"]
[EventType "swiss"]
[EventRounds "5"]
[EventCountry "CAN"]
[TimeControl "900+2"]

1. Nf3 {[%emt 0:00:00]} Nf6 2. c4 c5 3. Nc3 e6 4. g3 b6 5. Bg2 Bb7 6. O-O Be7
7. Re1 Ne4 8. d4 Nxc3 9. bxc3 d6 10. e4 cxd4 11. cxd4 O-O 12. Bb2 Nd7 13. Nd2
e5 14. Nf1 exd4 15. Bxd4 Nc5 16. Ne3 Ne6 17. Bb2 Rc8 18. Rc1 Re8 19. Rc2 Bf8
20. Rd2 Qg5 21. Nf5 Rxc4 22. h4 Qd8 23. Ne3 Rc7 24. Qg4 Qc8 25. Nf5 g6 26. h5
Rc2 27. Qe2 Rxd2 28. Qxd2 gxf5 29. exf5 h6 30. fxe6 Rxe6 31. Rc1 Qa8 32. Bh3
Bf3 33. Bxe6 fxe6 34. Qd3 Qe4 35. Qxe4 Bxe4 36. Rc7 a5 37. a4 e5 38. Ba3 Bf3
39. Rd7 Bxh5 40. Bxd6 Bg7 41. Bc7 Be8 42. Rd6 Bxa4 43. Bxb6 Kf7 44. Bxa5 Bf8
45. Rb6 Bd1 46. Bc3 e4 47. Rf6+ Kg8 48. g4 Bf3 49. Bd4 h5 50. g5 h4 51. Rb6 Bh5
52. g6 h3 53. Kh2 Bg4 54. Rb8 e3 55. g7 1-0

[Event "Carnaval"]
[Site "Quebec CAN"]
[Date "2016.02.21"]
[Round "5"]
[White "Hansen, Eric"]
[Black "Chiku-Ratte, Olivier-Kenta"]
[Result "1-0"]
[ECO "A61"]
[WhiteElo "2584"]
[BlackElo "2413"]
[PlyCount "101"]
[EventDate "2016.02.19"]
[EventType "swiss"]
[EventRounds "5"]
[EventCountry "CAN"]
[TimeControl "900+2"]

1. d4 Nf6 2. c4 c5 3. d5 e6 4. Nc3 exd5 5. cxd5 d6 6. Nf3 g6 7. Bf4 a6 8. a4
Bg7 9. h3 O-O 10. e3 Re8 11. Nd2 Nbd7 12. Be2 Ne5 13. O-O Nfd7 14. Qc2 Rb8 15.
Rae1 f5 16. Bh2 Nf6 17. Kh1 Qe7 18. f4 Nf7 19. Bd3 Bd7 20. e4 fxe4 21. Ndxe4
Nxe4 22. Nxe4 Bf5 23. b3 Bxe4 24. Rxe4 Qf6 25. f5 gxf5 26. Rxe8+ Rxe8 27. Bxf5
Kh8 28. Bd3 Qe7 29. Bxh7 Ne5 30. Bf5 Rf8 31. Qe2 Qg5 32. Bb1 Rxf1+ 33. Qxf1 b5
34. axb5 axb5 35. Bg1 c4 36. bxc4 bxc4 37. Qe2 Kg8 38. Be3 Qf6 39. Be4 Qh4 40.
Bf2 Qf4 41. g3 Qc1+ 42. Kg2 c3 43. Qh5 Qd2 44. Qf5 Nf7 45. Qc8+ Bf8 46. Qe6 Qg5
47. Be1 Bg7 48. Qe8+ Bf8 49. Bxc3 Qc1 50. Bh7+ Kxh7 51. Qxf7+ 1-0

[Event "Carnaval"]
[Site "Quebec CAN"]
[Date "2014.01.25"]
[Round "3"]
[White "Sambuev, Bator"]
[Black "Chiku-Ratte, Olivier-Kenta"]
[Result "1-0"]
[ECO "A47"]
[WhiteElo "2590"]
[BlackElo "2216"]
[PlyCount "81"]
[EventDate "2014.01.24"]
[EventType "swiss"]
[EventRounds "5"]
[EventCountry "CAN"]
[TimeControl "900+10"]

1. d4 Nf6 2. Nf3 c5 3. e3 b6 4. Bd3 Bb7 5. O-O g6 6. c4 Bg7 7. d5 O-O 8. Nc3 d6
9. e4 e6 10. h3 exd5 11. exd5 a6 12. a4 Nbd7 13. Bf4 Qc7 14. Bh2 Rfe8 15. Nd2
Ne5 16. Bc2 Re7 17. f4 Ned7 18. Nf3 Rae8 19. f5 Bh6 20. Kh1 Be3 21. fxg6 hxg6
22. Qe1 Nh5 23. Qh4 Ng7 24. Rae1 Bc8 25. Rxe3 Rxe3 26. Ng5 Nf8 27. Rxf7 Qxf7
28. Nxf7 Kxf7 29. Ne4 Nf5 30. Nxd6+ Nxd6 31. Bxd6 Re2 32. Qf4+ Kg8 33. Bd3 R2e3
34. Bxf8 Rxd3 35. Qf6 Rd1+ 36. Kh2 Rxf8 37. Qxg6+ Kh8 38. Qh5+ Kg7 39. Qxd1 Rf7
40. Qb3 Rf6 41. Qg3+ 1-0

[Event "Carnaval"]
[Site "Quebec CAN"]
[Date "2014.01.26"]
[Round "5"]
[White "Lawson, Eric"]
[Black "Chiku-Ratte, Olivier-Kenta"]
[Result "1-0"]
[ECO "A45"]
[WhiteElo "2381"]
[BlackElo "2216"]
[PlyCount "68"]
[EventDate "2014.01.24"]
[EventType "swiss"]
[EventRounds "5"]
[EventCountry "CAN"]
[TimeControl "900+10"]

1. d4 Nf6 2. Bg5 c5 3. d5 Ne4 4. Bf4 Qb6 5. Bc1 e6 6. f3 Nf6 7. c4 exd5 8. cxd5
c4 9. e3 Bc5 10. Kf2 O-O 11. Bxc4 Re8 12. Qb3 Qd8 13. Ne2 d6 14. Rd1 Nbd7 15.
Nd4 a6 16. a4 Ne5 17. Be2 b6 18. Nc3 Bb7 19. Kg1 Nfd7 20. Kh1 Rc8 21. e4 Qf6
22. Be3 h5 23. Na2 Ng6 24. Nb4 a5 25. Bb5 Nge5 26. Nbc6 Bxd4 27. Bxd4 Nc5 28.
Bxc5 dxc5 29. Na7 Red8 30. Nxc8 Bxc8 31. d6 Be6 32. Qe3 g5 33. d7 Bxd7 34. Rd6
Be6 1-0